bitfinex/quotes_BTCUSD_20230404
["timestamp","ask_amount","ask_price","bid_price","bid_amount"]
[1680603301177,0.02310001,28218.0,28217.0,1.62519596]
[1680603302167,0.02310001,28218.0,28217.0,1.65319596]
[1680603303014,0.02310001,28218.0,28217.0,1.43712385]
[1680603304351,6e-05,28222.0,28218.0,0.28642482]
[1680603304570,0.2,28224.0,28221.0,0.26102]
[1680603304799,0.20018,28224.0,28223.0,0.0839]
[1680603305018,0.20018,28224.0,28223.0,0.38397]
[1680603305229,0.20018,28224.0,28223.0,0.43242516]
[1680603305455,0.02310001,28225.0,28223.0,0.43242516]
[1680603305456,0.02328001,28225.0,28224.0,0.0839]
[1680603305669,0.02310001,28225.0,28224.0,0.74565837]
[1680603305884,0.02310001,28225.0,28224.0,1.13826156]
[1680603306097,0.02310001,28225.0,28224.0,1.45253185]
[1680603306844,0.02310001,28225.0,28224.0,1.62269185]
[1680603307058,0.02310001,28225.0,28224.0,1.45271185]
[1680603307269,0.02310001,28225.0,28224.0,1.62251185]
[1680603307488,0.02304001,28225.0,28224.0,1.65051185]
[1680603307714,0.02204001,28225.0,28224.0,1.67851185]
[1680603309303,1e-08,28228.0,28225.0,0.31283997]
[1680603309557,0.00018,28234.0,28227.0,0.34489]
[1680603309782,0.22328001,28235.0,28231.0,0.0836]
[1680603309994,0.00018,28234.0,28231.0,0.80097537]
[1680603310215,0.00018,28234.0,28231.0,1.03516566]
[1680603310451,0.00018,28234.0,28231.0,1.39716885]
[1680603310682,0.00018,28234.0,28231.0,1.42516885]
[1680603310898,0.22328001,28235.0,28231.0,1.34156885]
[1680603311133,0.22328001,28235.0,28231.0,1.31356885]
[1680603311355,0.22328001,28235.0,28231.0,1.34196885]
[1680603311565,0.0207592,28232.0,28231.0,1.33737693]
[1680603311788,0.0207592,28232.0,28231.0,1.36537693]
[1680603312008,0.0207592,28232.0,28231.0,1.61537693]
[1680603312236,0.12890375,28235.0,28232.0,0.3336]
[1680603312470,0.02310001,28236.0,28234.0,0.34348]
[1680603312698,0.02310001,28236.0,28235.0,0.58521056]
[1680603312926,0.02310001,28236.0,28235.0,1.00513056]
[1680603313154,0.02310001,28236.0,28235.0,1.55850085]
[1680603313365,1e-08,28236.0,28235.0,1.64170085]
[1680603313581,1e-08,28236.0,28235.0,1.66970085]
[1680603313797,0.0086625,28238.0,28236.0,0.25]
[1680603314021,0.0086625,28238.0,28237.0,0.52702556]
[1680603314233,0.13756625,28238.0,28237.0,0.75978553]
[1680603314465,0.13756625,28238.0,28237.0,1.17688553]
[1680603314684,0.13756625,28238.0,28237.0,1.00696553]
[1680603314903,0.13756625,28238.0,28237.0,1.25696553]
[1680603315332,0.1010252,28238.0,28237.0,1.51858553]
[1680603316004,0.1240152,28241.0,28237.0,1.68824353]
[1680603316404,0.1240152,28241.0,28240.0,0.42702]
[1680603316632,0.1240152,28241.0,28240.0,0.87008156]
[1680603317343,0.00012,28243.0,28241.0,0.10102]
[1680603317588,0.405,28262.0,28242.0,1.28909834]
[1680603317844,0.405,28262.0,28250.0,0.2]
[1680603317845,6e-05,28255.0,28250.0,0.2]
[1680603318088,0.01012,28263.0,28254.0,0.17691]
[1680603318322,0.01,28263.0,28262.0,0.1769]
[1680603318558,0.01,28263.0,28262.0,0.163603]
[1680603318791,0.01,28263.0,28262.0,0.135297]
[1680603319034,0.01,28263.0,28262.0,0.45410381]
[1680603319258,0.01,28263.0,28262.0,0.8711455]
[1680603319483,0.01,28263.0,28262.0,0.6942355]
[1680603319704,0.00783653,28263.0,28262.0,0.71587022]
[1680603320172,0.00783653,28263.0,28262.0,1.04759078]
[1680603320417,0.00783653,28263.0,28262.0,0.70703322]
[1680603320649,0.00570959,28263.0,28262.0,0.08431722]
[1680603321114,0.00570959,28263.0,28262.0,0.09847022]
[1680603321346,0.00570959,28263.0,28262.0,0.17537022]
[1680603321572,0.00359784,28263.0,28262.0,0.16121722]
[1680603321804,0.00359784,28263.0,28262.0,0.17537022]
[1680603322744,0.00150118,28263.0,28262.0,0.17537022]
[1680603322969,0.00150118,28263.0,28262.0,0.09847022]
[1680603323191,0.10625,28267.0,28263.0,0.25]
[1680603323440,0.00018,28271.0,28264.0,0.21571383]
[1680603323669,0.37708,28272.0,28267.0,0.26018]
[1680603323902,0.37708,28272.0,28268.0,0.98506137]
[1680603323903,0.00018,28272.0,28268.0,0.98506137]
[1680603324147,0.0015,28283.0,28275.0,0.09375]
[1680603324148,0.3992,28279.0,28275.0,0.09375]
[1680603324379,0.10775,28283.0,28275.0,0.09375]
[1680603324380,0.10643,28280.0,28276.0,0.20340781]
[1680603324620,0.10625,28280.0,28277.0,0.039413]
[1680603324859,0.12924,28280.0,28279.0,0.25]
[1680603325083,0.12924,28280.0,28279.0,0.038348]
[1680603325319,0.12924,28280.0,28277.0,0.038074]
[1680603325549,0.10625,28277.0,28276.0,0.009375]
[1680603325777,0.18985,28277.0,28271.0,0.09393]
[1680603326014,0.0836,28272.0,28271.0,3.59879105]
[1680603326258,0.0836,28272.0,28271.0,3.63481505]
[1680603326500,0.167,28272.0,28271.0,0.035844]
[1680603326738,0.10625,28270.0,28269.0,0.01892491]
[1680603326965,0.18945,28270.0,28269.0,0.01892491]
[1680603327205,0.10625,28270.0,28269.0,0.01892491]
[1680603327439,0.23985,28270.0,28269.0,0.01892491]
[1680603327673,0.23985,28270.0,28264.0,0.00018]
[1680603327925,0.1336,28268.0,28264.0,0.009393]
[1680603328165,0.10625,28270.0,28264.0,0.009393]
[1680603328166,0.10625,28270.0,28265.0,0.039906]
[1680603328398,0.10625,28270.0,28264.0,0.023545]
[1680603328626,0.10625,28270.0,28265.0,0.0566253]
[1680603328854,0.10625,28270.0,28266.0,0.31080071]
[1680603329092,0.10625,28270.0,28267.0,0.041568]
[1680603329557,0.10625,28270.0,28268.0,0.038884]
[1680603329783,0.10625,28270.0,28267.0,0.039741]
[1680603330006,0.00018,28272.0,28268.0,0.01415]
[1680603330230,0.10625,28272.0,28269.0,0.0438061]
[1680603330466,0.13248,28274.0,28270.0,0.038663]
[1680603330694,0.00018,28275.0,28271.0,0.27809181]
[1680603330912,0.00018,28277.0,28272.0,0.32056248]
[1680603331142,0.10631,28278.0,28273.0,0.37058681]
[1680603331371,0.10625,28278.0,28274.0,0.288964]
[1680603331603,0.10625,28278.0,28275.0,0.23921456]
[1680603331885,0.10625,28278.0,28276.0,0.288369]
[1680603332111,0.10625,28278.0,28277.0,0.038472]
[1680603332793,0.00018,28279.0,28277.0,0.229427]
[1680603333018,0.02299,28280.0,28278.0,0.131274]
[1680603333250,0.02299,28280.0,28279.0,0.08587]
[1680603333486,0.02299,28280.0,28279.0,0.59897]
[1680603333764,0.15659,28287.0,28286.0,0.09369]
[1680603333765,0.02299,28287.0,28286.0,0.09369]
[1680603334001,0.02299,28287.0,28286.0,0.47369481]
[1680603334238,0.02299,28287.0,28286.0,0.047217]
[1680603334471,0.02299,28287.0,28286.0,0.566117]
[1680603334713,0.02299,28287.0,28286.0,0.047217]
[1680603334942,0.02299,28287.0,28286.0,0.342117]
[1680603335413,0.02299,28287.0,28286.0,0.047217]
[1680603336850,0.02299,28287.0,28286.0,0.06444113]
[1680603337088,0.266042,28287.0,28285.0,0.02512606]
[1680603337324,0.2618,28287.0,28285.0,0.02512606]
[1680603337558,0.266042,28287.0,28285.0,0.02512606]
[1680603337782,0.272267,28286.0,28285.0,0.02512606]
[1680603338013,0.272267,28286.0,28279.0,3.63384305]
[1680603338014,0.026509,28286.0,28279.0,3.63384305]
[1680603338247,0.23941,28283.0,28280.0,0.036518]
[1680603338473,0.23941,28283.0,28280.0,0.036698]
[1680603338690,0.23941,28283.0,28280.0,0.0645085]
[1680603338914,0.23941,28283.0,28280.0,0.0278105]
[1680603339132,0.23941,28283.0,28280.0,0.03997855]
[1680603340274,0.23991,28283.0,28280.0,0.03997855]
[1680603340499,0.10631,28283.0,28281.0,0.042041]
[1680603340717,0.23991,28286.0,28281.0,0.042041]
[1680603340954,0.23991,28286.0,28282.0,0.00963436]
[1680603341194,0.02299,28287.0,28283.0,0.014142]
[1680603341438,0.02299,28287.0,28283.0,0.15603881]
[1680603341661,0.02299,28287.0,28284.0,0.041438]
[1680603341889,0.02299,28287.0,28285.0,0.02243614]
[1680603342382,0.02299,28287.0,28286.0,0.02690909]
[1680603342828,0.02299,28287.0,28283.0,0.02688464]
[1680603342829,0.10531,28284.0,28283.0,0.02688464]
[1680603343050,0.23891,28284.0,28283.0,0.05459741]
[1680603343268,0.23891,28284.0,28283.0,0.03234438]
[1680603343508,0.23891,28284.0,28283.0,0.02688464]
[1680603343733,0.00012,28285.0,28283.0,0.02688464]
[1680603343975,0.02299,28287.0,28286.0,0.02274974]
[1680603344200,0.02199,28287.0,28286.0,0.02274974]
[1680603345532,0.55930447,28287.0,28283.0,0.02471123]
[1680603345749,0.55506247,28287.0,28283.0,0.03666935]
[1680603345968,0.02831,28286.0,28284.0,0.02069578]
[1680603346190,0.02831,28286.0,28285.0,0.02793302]
[1680603346639,0.282552,28286.0,28285.0,0.0258389]
[1680603346857,0.300577,28286.0,28285.0,0.0258389]
[1680603347601,0.300577,28286.0,28281.0,0.00018]
[1680603347602,0.405887,28286.0,28281.0,0.00018]
[1680603347831,0.23881,28282.0,28280.0,0.0278105]
[1680603348052,0.03094,28281.0,28280.0,0.0278105]
[1680603348277,0.022454,28281.0,28280.0,0.0278105]
[1680603348502,0.272454,28281.0,28280.0,0.0278105]
[1680603348960,0.280954,28281.0,28280.0,0.0278105]
[1680603349205,0.280954,28281.0,28280.0,1.05e-05]
[1680603349425,0.030954,28281.0,28280.0,1.05e-05]
[1680603349643,0.10531,28278.0,28276.0,0.02139588]
[1680603349865,0.136743,28277.0,28273.0,0.09469]
[1680603350083,0.136743,28277.0,28271.0,0.00018]
[1680603350084,0.1336,28274.0,28271.0,0.00018]
[1680603350307,0.1336,28272.0,28270.0,0.09487]
[1680603350532,0.012733,28271.0,28270.0,0.11581966]
[1680603351010,0.012733,28271.0,28269.0,0.00018]
[1680603351264,0.10531,28265.0,28264.0,0.00018]
[1680603351475,0.109555,28265.0,28259.0,0.00018]
[1680603351699,0.109555,28265.0,28258.0,0.00018]
[1680603351700,0.1331,28263.0,28258.0,0.00018]
[1680603351923,0.1331,28263.0,28261.0,0.04118]
[1680603352147,0.1331,28263.0,28262.0,0.0164166]
[1680603352361,0.1331,28263.0,28262.0,0.0695203]
[1680603352610,0.1331,28263.0,28262.0,0.0282413]
[1680603352824,0.1336,28266.0,28262.0,6e-05]
[1680603353060,0.1336,28266.0,28265.0,0.09469]
[1680603353272,0.1336,28266.0,28265.0,0.09487]
[1680603353492,0.51472994,28268.0,28265.0,0.09487]
[1680603353718,0.1323,28268.0,28265.0,0.23676681]
[1680603353985,0.1323,28268.0,28266.0,0.042607]
[1680603354208,0.1323,28268.0,28266.0,0.0153429]
[1680603355091,0.1323,28268.0,28266.0,0.04302051]
[1680603355345,0.1323,28268.0,28266.0,0.04320051]
[1680603355579,0.1313,28268.0,28266.0,0.04302051]
[1680603355784,0.46806699,28269.0,28266.0,0.04302051]
[1680603356450,0.46806699,28269.0,28267.0,0.01377105]
[1680603356670,0.47231099,28269.0,28267.0,0.01377105]
[1680603356906,0.47131099,28269.0,28267.0,0.01377105]
[1680603357130,0.47131099,28269.0,28265.0,0.09487]
[1680603357347,0.47131099,28269.0,28265.0,0.11621548]
[1680603357567,0.1336,28267.0,28265.0,0.11621548]
[1680603357846,0.012735,28266.0,28264.0,0.00018]
[1680603358067,0.004245,28266.0,28263.0,0.02574593]
[1680603358285,0.004245,28266.0,28264.0,0.009487]
[1680603358509,0.1325,28265.0,28264.0,0.009487]
[1680603358734,0.1325,28265.0,28263.0,0.02574593]
[1680603359625,0.1315,28265.0,28264.0,0.02895765]
[1680603359850,0.1315,28265.0,28264.0,0.05434054]
[1680603360287,0.1315,28265.0,28264.0,0.02895765]
[1680603360511,0.1315,28265.0,28263.0,0.02693929]
[1680603360742,0.1315,28265.0,28262.0,0.09469]
[1680603360958,0.52481979,28265.0,28262.0,0.09469]
[1680603361179,0.52906479,28265.0,28262.0,0.09469]
[1680603361683,0.2,28264.0,28263.0,0.02897506]
[1680603361906,0.52924479,28265.0,28263.0,0.02897506]
[1680603362124,0.016915,28264.0,28263.0,0.04358543]
[1680603362349,0.016915,28264.0,28263.0,0.02897506]
[1680603362350,0.27116,28264.0,28263.0,0.02897506]
[1680603362572,0.27016,28264.0,28263.0,0.02897506]
[1680603362799,0.65893054,28264.0,28262.0,0.09469]
[1680603363017,0.150909,28263.0,28262.0,0.09469]
[1680603363247,0.155154,28263.0,28260.0,0.14444715]
[1680603363467,0.137345,28263.0,28262.0,0.0122986]
[1680603363710,0.137345,28263.0,28262.0,0.02708152]
[1680603363929,0.438409,28263.0,28262.0,0.02708152]
[1680603364377,0.688409,28263.0,28262.0,0.02708152]
[1680603364617,0.17599777,28258.0,28254.0,0.00401047]
[1680603364831,0.1325,28256.0,28254.0,0.00401047]
[1680603365051,0.012741,28255.0,28252.0,0.02400223]
[1680603365277,0.012741,28255.0,28253.0,0.00376704]
[1680603365510,0.1336,28254.0,28252.0,0.02400223]
[1680603365728,0.137847,28254.0,28252.0,0.02786836]
[1680603366377,0.137847,28254.0,28252.0,0.02400223]
[1680603366378,0.55296566,28254.0,28252.0,0.02400223]
[1680603366821,0.55296566,28254.0,28252.0,0.0281992]
[1680603367481,0.017142,28253.0,28252.0,0.0281992]
[1680603367704,0.1336,28254.0,28252.0,0.0281992]
[1680603367921,0.1336,28254.0,28253.0,0.00440854]
[1680603368363,0.17617777,28258.0,28253.0,0.00440854]
[1680603368364,0.00018,28258.0,28255.0,0.02400223]
[1680603368613,0.40456428,28260.0,28256.0,0.14189681]
[1680603368844,6e-05,28260.0,28258.0,0.02400223]
[1680603369079,0.33201988,28265.0,28259.0,0.18300181]
[1680603369314,0.25,28264.0,28260.0,0.16259721]
[1680603369539,0.25,28264.0,28260.0,0.18677944]
[1680603369755,0.46451988,28265.0,28260.0,0.18677944]
[1680603370198,0.45886933,28264.0,28260.0,0.18677944]
[1680603370421,0.71774191,28263.0,28260.0,0.04488263]
[1680603370650,0.136745,28265.0,28260.0,0.02400223]
[1680603370870,0.52429149,28265.0,28261.0,0.00449366]
[1680603371315,0.25,28264.0,28261.0,0.00449366]
[1680603371548,0.44256298,28264.0,28261.0,0.00449366]
[1680603371769,0.1325,28265.0,28263.0,0.02400223]
[1680603372009,0.43174535,28267.0,28263.0,0.02400223]
[1680603372219,0.43174535,28267.0,28263.0,0.17016393]
[1680603372444,0.43258613,28266.0,28263.0,0.17016393]
[1680603372672,0.00018,28268.0,28264.0,0.01748297]
[1680603372896,0.36363332,28269.0,28265.0,0.14189681]
[1680603373115,0.36363332,28269.0,28266.0,0.01735308]
[1680603373592,0.00884525,28270.0,28264.0,0.01748297]
[1680603373822,0.33142943,28272.0,28267.0,0.02795893]
[1680603374077,0.03489724,28295.0,28286.0,0.4]
[1680603374320,0.00185397,28299.0,28298.0,0.2]
[1680603374551,0.01051094,28305.0,28303.0,0.2]
[1680603374794,0.01051094,28305.0,28303.0,0.1823859]
[1680603375087,0.02121878,28304.0,28303.0,0.3674559]
[1680603375337,0.00881833,28308.0,28303.0,1.13056327]
[1680603375540,0.0729241,28312.0,28306.0,0.1270759]
[1680603375763,0.53909769,28312.0,28309.0,0.79765056]
[1680603376043,0.0731041,28312.0,28311.0,0.17658]
[1680603376265,0.20006,28312.0,28311.0,0.029622]
[1680603376487,0.62904095,28311.0,28302.0,0.00018]
[1680603376721,0.62904095,28311.0,28303.0,0.1336]
[1680603376722,0.25018,28311.0,28303.0,0.1336]
[1680603376950,0.00018,28311.0,28303.0,0.1336]
[1680603377183,0.36974,28312.0,28304.0,0.25]
[1680603377403,0.33707681,28312.0,28307.0,0.00482]
[1680603377625,0.19518,28312.0,28307.0,0.13681645]
[1680603377844,0.19518,28312.0,28311.0,0.2796]
[1680603378074,0.19518,28312.0,28311.0,0.299563]
[1680603378320,0.19518,28312.0,28311.0,0.00018]
[1680603378570,6e-05,28313.0,28307.0,0.00382]
[1680603378794,0.14207681,28313.0,28307.0,0.00382]
[1680603379019,0.338469,28313.0,28308.0,0.13181645]
[1680603379236,0.33993101,28312.0,28307.0,0.00382]
[1680603379450,0.34011101,28312.0,28307.0,0.00382]
[1680603379671,0.00018,28312.0,28307.0,0.023346]
[1680603379933,0.00018,28313.0,28308.0,0.016742]
[1680603380171,0.33940241,28313.0,28307.0,0.295845]
[1680603380391,0.39641111,28312.0,28306.0,0.25]
[1680603380610,0.00018,28312.0,28307.0,0.016578]
[1680603380824,0.50215586,28314.0,28307.0,0.016578]
[1680603381059,0.46986696,28313.0,28308.0,0.13181645]
[1680603381302,0.00018,28313.0,28309.0,0.016622]
[1680603381531,0.4220252,28314.0,28308.0,0.01555]
[1680603381753,0.56392201,28314.0,28308.0,0.14736645]
[1680603381974,0.36684775,28313.0,28308.0,0.13181645]
[1680603382192,0.00018,28313.0,28309.0,0.25]
[1680603382443,0.075,28314.0,28310.0,0.01654]
[1680603382641,0.075,28314.0,28310.0,0.14835645]
[1680603382860,0.075,28314.0,28311.0,0.016866]
[1680603383303,0.075,28314.0,28309.0,0.25]
[1680603383304,0.075,28314.0,28312.0,0.48652701]
[1680603383531,0.01096491,28319.0,28315.0,0.19998449]
[1680603383805,0.43838526,28329.0,28317.0,0.63431056]
[1680603384047,0.373675,28329.0,28318.0,0.14769545]
[1680603384266,0.75288518,28328.0,28318.0,0.13199645]
[1680603384488,0.38886561,28330.0,28319.0,0.38545956]
[1680603384705,0.38769087,28330.0,28320.0,0.50194401]
[1680603384924,0.37325878,28329.0,28321.0,0.016982]
[1680603385143,0.00085492,28331.0,28322.0,0.13181645]
[1680603385369,0.00085492,28331.0,28323.0,0.37096956]
[1680603385586,0.43174237,28328.0,28324.0,0.14767345]
[1680603385815,0.40692834,28328.0,28324.0,0.00018]
[1680603386039,0.14189681,28327.0,28324.0,0.00018]
[1680603386267,0.503538,28326.0,28318.0,0.00012]
[1680603386483,0.14189681,28325.0,28318.0,0.00018]
[1680603386696,0.004236,28323.0,28318.0,0.00012]
[1680603386911,0.14189681,28322.0,28317.0,0.00018]
[1680603387133,0.39189681,28322.0,28317.0,0.00018]
[1680603387360,0.3,28321.0,28317.0,0.00018]
[1680603387634,0.039644,28320.0,28318.0,0.01616001]
[1680603387870,0.3,28321.0,28318.0,0.01616001]
[1680603388094,0.34630564,28325.0,28318.0,0.14797646]
[1680603388316,0.21703815,28325.0,28319.0,0.13181645]
[1680603388536,0.21703815,28325.0,28319.0,0.13199645]
[1680603388983,0.11703815,28325.0,28320.0,0.48652701]
[1680603389206,0.00085492,28331.0,28324.0,0.1765]
[1680603389207,0.00018,28328.0,28324.0,0.1765]
[1680603389432,0.00085492,28331.0,28326.0,0.19998449]
[1680603389650,0.09585492,28334.0,28327.0,0.280108]
[1680603389874,0.09585492,28334.0,28328.0,0.016189]
[1680603390121,0.09585492,28334.0,28328.0,0.016369]
[1680603390329,0.38871358,28333.0,28328.0,0.016369]
[1680603390551,0.38871358,28333.0,28328.0,0.00018]
[1680603390552,0.39294858,28333.0,28328.0,0.00018]
[1680603390774,0.25,28332.0,28328.0,0.00018]
[1680603391210,0.39613181,28332.0,28328.0,0.00018]
[1680603391450,0.254235,28332.0,28327.0,0.00018]
[1680603391697,0.09585492,28334.0,28327.0,0.13199645]
[1680603391698,0.48888274,28334.0,28327.0,0.13199645]
[1680603391922,0.09585492,28334.0,28328.0,0.13181645]
[1680603392138,0.09585492,28334.0,28329.0,0.261267]
[1680603392139,0.42439981,28333.0,28329.0,0.261267]
[1680603392373,0.42457981,28333.0,28329.0,0.245]
[1680603392585,0.41939981,28333.0,28329.0,0.01614924]
[1680603392804,0.41939981,28333.0,28329.0,0.01596924]
[1680603393255,0.09585492,28334.0,28329.0,0.01596924]
[1680603393256,0.44993694,28334.0,28329.0,0.01596924]
[1680603393478,0.09585492,28334.0,28331.0,0.17648]
[1680603393711,0.09585492,28334.0,28332.0,0.015175]
[1680603394183,0.09585492,28334.0,28332.0,0.015355]
[1680603394406,0.09585492,28334.0,28333.0,0.40948045]
[1680603394626,0.09585492,28334.0,28333.0,0.06146689]
[1680603394848,0.09585492,28334.0,28333.0,0.40099745]
[1680603395071,0.09585492,28334.0,28333.0,0.40949745]
[1680603395317,0.09585492,28334.0,28333.0,0.41511445]
[1680603395557,0.09085492,28334.0,28333.0,0.04628689]
[1680603395758,0.09085492,28334.0,28333.0,0.41511445]
[1680603395987,0.09085492,28334.0,28333.0,0.016697]
[1680603396220,0.09085492,28334.0,28333.0,0.04304473]
[1680603396451,0.09085492,28334.0,28333.0,0.05969773]
[1680603396675,0.09085492,28334.0,28333.0,0.05998673]
[1680603396894,0.09085492,28334.0,28330.0,0.00018]
[1680603396895,0.38473032,28333.0,28330.0,0.00018]
[1680603397113,0.53086213,28333.0,28329.0,0.01596924]
[1680603397335,0.14189681,28332.0,28329.0,0.01596924]
[1680603397561,0.14189681,28332.0,28323.0,0.19998449]
[1680603397562,0.351694,28331.0,28323.0,0.00018]
[1680603397784,0.351694,28331.0,28322.0,0.014123]
[1680603397785,0.14189681,28330.0,28322.0,0.014123]
[1680603398000,0.14189681,28330.0,28323.0,0.35471056]
[1680603398250,0.14189681,28330.0,28325.0,0.24234849]
[1680603398476,0.35490106,28333.0,28329.0,0.03576803]
[1680603398705,0.35895606,28333.0,28329.0,0.13181645]
[1680603398934,0.35472106,28333.0,28330.0,0.03937162]
[1680603399205,0.35472106,28333.0,28329.0,0.13181645]
[1680603399437,0.35472106,28333.0,28328.0,0.04136191]
[1680603399668,0.35472106,28333.0,28329.0,0.03674324]
[1680603400128,0.35472106,28333.0,28328.0,0.13199645]
[1680603400354,0.38449763,28333.0,28328.0,0.00018]
[1680603400579,0.14613181,28333.0,28326.0,0.00018]
[1680603400817,0.14613181,28333.0,28326.0,0.04019135]
[1680603400818,0.14189681,28332.0,28326.0,0.04019135]
[1680603401038,0.279648,28331.0,28323.0,0.00018]
[1680603401256,0.18575781,28330.0,28323.0,0.00018]
[1680603401484,0.012708,28328.0,28321.0,0.03499396]
[1680603401704,0.012708,28328.0,28325.0,0.03450643]
[1680603401705,0.14189681,28327.0,28325.0,0.03450643]
[1680603401925,0.15460481,28326.0,28321.0,0.00018]
[1680603402153,0.15460481,28326.0,28320.0,0.04559048]
[1680603402154,0.18307481,28325.0,28320.0,0.04559048]
[1680603402369,0.14613281,28324.0,28319.0,0.00018]
[1680603402584,0.14613281,28324.0,28320.0,0.03778706]
[1680603402585,0.58714741,28324.0,28320.0,0.03778706]
[1680603402800,0.58714741,28324.0,28320.0,0.00018]
[1680603403038,0.58732741,28324.0,28318.0,0.0440148]
[1680603403511,0.4411946,28324.0,28319.0,0.13181645]
[1680603403729,0.4411946,28324.0,28320.0,0.016867]
[1680603404172,0.4411946,28324.0,28319.0,0.015727]
[1680603404417,0.4411946,28324.0,28318.0,0.28581948]
[1680603404418,0.14189681,28323.0,28318.0,0.03581948]
[1680603404648,0.14207681,28323.0,28316.0,0.03691731]
[1680603404877,0.14207681,28323.0,28317.0,0.0341811]
[1680603404878,0.14189681,28323.0,28317.0,0.0341811]
[1680603405112,0.14207681,28323.0,28315.0,0.014126]
[1680603405327,0.42545176,28322.0,28317.0,0.03333579]
[1680603405584,0.57176457,28322.0,28317.0,0.03333579]
[1680603406260,0.42986776,28322.0,28315.0,0.13181645]
[1680603406481,0.14189681,28321.0,28316.0,0.03538451]
[1680603406702,0.004237,28320.0,28316.0,0.03538451]
[1680603406974,0.00018,28321.0,28317.0,0.29616642]
[1680603407191,0.00018,28321.0,28318.0,0.016129]
[1680603407623,0.004417,28321.0,28318.0,0.016129]
[1680603407845,0.41039472,28320.0,28315.0,0.016684]
[1680603408067,0.55247153,28320.0,28315.0,0.03404728]
[1680603408284,0.55247153,28320.0,28316.0,0.05684511]
[1680603408501,0.41057472,28320.0,28317.0,0.01683]
[1680603408976,0.41057472,28320.0,28313.0,0.25065268]
[1680603409201,0.14189681,28319.0,28316.0,0.03748995]
[1680603409458,0.00018,28319.0,28317.0,0.05303558]
[1680603409695,0.39357268,28320.0,28318.0,0.016385]
[1680603409918,0.39357268,28320.0,28317.0,0.03663258]
[1680603410389,0.39357268,28320.0,28318.0,0.016377]
[1680603410612,0.39357268,28320.0,28313.0,0.26477968]
[1680603410613,0.45963383,28319.0,28314.0,0.03963748]
[1680603410831,0.60594764,28319.0,28315.0,0.016352]
[1680603411082,0.46405083,28319.0,28315.0,0.016352]
[1680603411299,0.46405083,28319.0,28314.0,0.03963748]
[1680603411538,0.60594764,28319.0,28315.0,0.016654]
[1680603411769,0.60594764,28319.0,28314.0,0.03963748]
[1680603411770,0.25,28318.0,28314.0,0.03963748]
[1680603412029,0.004237,28317.0,28314.0,0.03913748]
[1680603412261,0.004237,28317.0,28312.0,0.00018]
[1680603412497,0.14613381,28317.0,28312.0,0.03246788]
[1680603412729,0.14631381,28317.0,28312.0,0.03246788]
[1680603412962,0.14631381,28317.0,28311.0,0.27288]
[1680603413193,0.462045,28316.0,28312.0,0.05273669]
[1680603413401,0.00018,28316.0,28312.0,0.03653169]
[1680603413673,0.00018,28318.0,28313.0,0.017022]
[1680603413895,0.00018,28318.0,28313.0,0.14883845]
[1680603414116,0.3082049,28320.0,28314.0,0.016546]
[1680603414312,0.3082049,28320.0,28315.0,0.13181645]
[1680603414606,0.3082049,28320.0,28316.0,0.016534]
[1680603415055,0.3082049,28320.0,28314.0,0.00018]
[1680603415282,0.45010171,28320.0,28314.0,0.13199645]
[1680603415503,0.14613381,28320.0,28315.0,0.016455]
[1680603415726,0.004237,28320.0,28315.0,0.10588179]
[1680603415947,0.004237,28320.0,28316.0,0.016731]
[1680603416180,0.004237,28320.0,28316.0,0.016911]
[1680603416401,0.004237,28320.0,28316.0,0.00018]
[1680603416630,0.39481272,28319.0,28315.0,0.08924679]
[1680603416850,0.39481272,28319.0,28315.0,0.08942679]
[1680603417766,0.25,28318.0,28315.0,0.00018]
[1680603417997,0.004237,28317.0,28315.0,0.00018]
[1680603418237,0.004237,28317.0,28314.0,0.00018]
[1680603418471,0.38009891,28316.0,28314.0,0.00018]
[1680603418929,0.38009891,28316.0,28314.0,0.016813]
[1680603419391,0.00018,28317.0,28314.0,0.10311618]
[1680603419688,0.27928,28320.0,28315.0,0.015809]
[1680603419915,0.00018,28321.0,28319.0,0.08284637]
[1680603420143,0.00018,28324.0,28320.0,0.16207045]
[1680603420372,0.38043319,28324.0,28321.0,0.14829245]
[1680603420608,0.38043319,28324.0,28322.0,0.016664]
[1680603420838,0.00018,28324.0,28323.0,0.10228343]
[1680603421063,0.00018,28328.0,28323.0,0.11877643]
[1680603421298,0.46456637,28328.0,28324.0,0.14809445]
[1680603421539,0.00018,28328.0,28325.0,0.016297]
[1680603421764,6e-05,28328.0,28326.0,0.015935]
[1680603422000,0.35224614,28329.0,28323.0,0.11731156]
[1680603422254,0.42257169,28328.0,28324.0,0.016571]
[1680603422491,0.00018,28328.0,28324.0,0.016571]
[1680603422729,0.012708,28327.0,28324.0,0.13181645]
[1680603422968,0.004236,28327.0,28325.0,0.015644]
[1680603423208,0.44895713,28328.0,28324.0,0.016364]
[1680603423438,0.00018,28328.0,28324.0,0.016364]
[1680603423673,0.37578804,28327.0,28324.0,0.016364]
[1680603423909,0.37578804,28327.0,28325.0,0.09804859]
[1680603424153,0.37596804,28327.0,28326.0,0.016605]
[1680603424877,0.00018,28327.0,28326.0,0.14842145]
[1680603425120,0.00018,28330.0,28326.0,0.48676049]
[1680603425355,0.09085492,28334.0,28327.0,0.22429973]
[1680603425356,0.42946946,28329.0,28327.0,0.22429973]
[1680603425604,0.46002241,28329.0,28328.0,0.016573]
[1680603425836,0.37141926,28329.0,28327.0,0.016723]
[1680603426114,0.41435617,28329.0,28328.0,0.02601675]
[1680603426345,0.00018,28329.0,28328.0,0.04181575]
[1680603426568,6e-05,28330.0,28328.0,0.04181575]
[1680603426790,0.00018,28330.0,28329.0,0.015835]
[1680603427026,0.004415,28330.0,28329.0,0.015835]
[1680603427255,0.004415,28330.0,28323.0,0.46021408]
[1680603427256,0.004235,28330.0,28323.0,0.08289109]
[1680603427492,0.14189681,28329.0,28323.0,0.18610795]
[1680603427724,0.14189681,28329.0,28324.0,0.08289109]
[1680603427725,0.262708,28328.0,28324.0,0.08289109]
[1680603427947,0.40478481,28328.0,28324.0,0.08289109]
[1680603428192,0.14189681,28327.0,28324.0,0.08289109]
[1680603428406,0.055001,28326.0,28320.0,0.08307109]
[1680603428661,0.25,28324.0,28320.0,0.08289109]
[1680603428885,0.21381781,28323.0,28318.0,0.08385691]
[1680603429108,0.042117,28322.0,28318.0,0.08343109]
[1680603429331,0.004237,28321.0,28317.0,0.16764912]